Cogmind - Beta 13 @@@ ROGUE MODE // 2024.03.09 @ 23:48:36 Player: rCartos Result: Destroyed by S-27 Virus with Autogun Performance ------------- Evolutions (3) 1500 Regions Visited (5) 1000 Robots Destroyed (16) 80 Value Destroyed (392) 392 Prototype IDs (3) 60 Alien Tech Used (0) 0 Bonus (0) 0 TOTAL SCORE: 3032 Bonus ------- None Cogmind --------- Core Integrity 0/700 Matter 66/300 Energy 99/100 System Corruption 1% Temperature Cool (0) Movement Core (50) Location -7/Factory Parts ------- > --- POWER (3) -------- (None) > --- PROPULSION (4) --- (None) > --- UTILITY (4) ------ Trap Scanner > --- WEAPON (2) ------- (None) > --- INVENTORY (5) ---- Light Deuterium Engine Light Deuterium Engine Improved Terrain Scan Processor Improved Medium Armor Plating Proton Missile Launcher Peak State ------------ > --- POWER ------------ Ion Engine Nuclear Core > --- PROPULSION ------- Titanium Leg Titanium Leg Compact Wheel > --- UTILITY ---------- Seismic Detector Hardened Medium Armor Plating Hardened Medium Armor Plating Improved Medium Armor Plating > --- WEAPON ----------- Enhanced Autogun Enhanced Autogun > --- INVENTORY -------- Small Storage Unit Small Laser Light Assault Rifle Grenade Launcher [Rating: 30] Favorites ----------- Power Ion Engine Engine Ion Engine Power Core Nuclear Core Propulsion Compact Wheel Leg Titanium Leg Wheel Compact Wheel Hover Unit Aerolev Unit Utility Small Storage Unit Device Seismic Detector Storage Small Storage Unit Protection Hardened Medium Armor Plating Weapon Enhanced Autogun Energy Gun Small Laser Ballistic Gun Enhanced Autogun Launcher Grenade Launcher Special Weapon Plasma Cutter Build | -11 -10 -10 -9 -8 -7 ------- Run | Yrd Mat Min Mat Mat Fac Slots Evolved 6 | . . . 2 2 2 Power 2 | . . . . 1 1 Propulsion 2 | . . . 1 . 1 Utility 2 | . . . 1 1 . Weapon . | . . . . . . Parts Attached 50 | 8 . 5 17 12 8 Power 8 | 1 . 1 2 2 2 Engine 7 | 1 . 1 2 1 2 Core 1 | . . . . 1 . Reactor . | . . . . . . Propulsion 12 | 2 . 2 2 4 2 Treads . | . . . . . . Leg 5 | . . . . 4 1 Wheel 6 | 2 . 2 2 . . Hover 1 | . . . . . 1 Flight . | . . . . . . Utility 12 | 2 . . 3 4 3 Device 4 | 1 . . 1 . 2 Storage 3 | 1 . . . 2 . Processor . | . . . . . . Hackware . | . . . . . . Protection 5 | . . . 2 2 1 Artifact . | . . . . . . Weapon 18 | 3 . 2 10 2 1 Energy Gun 4 | 1 . . 3 . . Energy Cannon . | . . . . . . Ballistic Gun 5 | 2 . . 2 1 . Ballistic Cannon . | . . . . . . Launcher 6 | . . 2 2 1 1 Special Weapon 3 | . . . 3 . . Impact Weapon . | . . . . . . Slashing Weapon . | . . . . . . Piercing Weapon . | . . . . . . Special Melee Weapon . | . . . . . . Unidentified Prototypes 3 | . . . 2 . 1 Parts Lost 29 | . . 5 4 14 6 Power 5 | . . 1 1 3 . Propulsion 9 | . . 2 1 2 4 Utility 8 | . . . 1 5 2 Weapon 7 | . . 2 1 4 . Highest Loss Streak 5 | . . 5 4 5 5 To Critical Strikes . | . . . . . . Average Slot Usage (%) 72 | . 100 95 90 77 21 Engine 7 | . 14 13 10 5 . Core 1 | . . . . 4 . Leg 6 | . . . . 14 8 Wheel 15 | . 28 27 32 7 . Device 8 | . 14 14 13 4 3 Storage 9 | . 14 14 10 6 8 Protection 6 | . . . 1 19 . Ballistic Gun 10 | . 28 21 . 15 . Launcher 3 | . . 3 13 . . Special Weapon 1 | . . . 5 . . Naked Turns 11 | . . . . . 11 Heaviest Build 42 | 15 15 17 28 42 12 Greatest Support 51 | 20 20 32 48 51 49 Greatest Overweight (x) 4 | . . 4 . 2 3 Average Overweight (x) . | . . . . . . Largest Inventory Capacity 8 | 8 8 8 8 8 8 Average Capacity 7 | 7 8 8 7 6 6 Most Carried 8 | 4 5 7 8 5 5 Average Carried 3 | 1 3 5 4 3 . Final Capacity 8 | 8 8 8 5 8 5 Final Carried 5 | 3 5 3 5 . 5 Class Distribution -------------------- 100% | Mutant Dominant Class ---------------- Mutant | -10/Materials Mutant | -10/Mines Mutant | -9/Materials Mutant | -8/Materials Mutant | -7/Factory Resources | -11 -10 -10 -9 -8 -7 ----------- Run | Yrd Mat Min Mat Mat Fac Matter Collected 592 | 289 23 43 80 91 66 Remotely . | . . . . . . Salvage Created 266 | 98 23 . 64 76 5 Parts 34 | 4 5 . 17 8 . Haulers Intercepted . | . . . . . . Recyclers Shooed 1 | 1 . . . . . Parts Field Recycled . | . . . . . . Retrieved Matter . | . . . . . . Parts Self-Destructed . | . . . . . . Prevented . | . . . . . . Kills | -11 -10 -10 -9 -8 -7 ------- Run | Yrd Mat Min Mat Mat Fac Combat Hostiles Destroyed 10 | . . . 4 5 1 Melee 3 | . . . 1 1 1 Guns 4 | . . . . 4 . AOE 3 | . . . 3 . . Classes Destroyed 8 | 2 1 . 4 . 1 Builder 3 | . 1 . 2 . . Tunneler 1 | 1 . . . . . Recycler 1 | 1 . . . . . Watcher 1 | . . . 1 . . Swarmer 4 | . . . 2 2 . Grunt 3 | . . . 1 2 . Sentry 2 | . . . 1 1 . Programmer 1 | . . . . . 1 Best Kill Streak 3 | 2 1 . 3 2 1 Combat Bots Only 2 | . . . 2 2 1 Max Kills in Single Turn 2 | 1 1 . 2 1 1 Gunslinging . | . . . . . . Exploded 2 | . . . 2 . . Melee 1 | . . . 1 1 1 Uniques/NPCs Destroyed . | . . . . . . Combat | -11 -10 -10 -9 -8 -7 -------- Run | Yrd Mat Min Mat Mat Fac Hostile Shots Fired 489 | . . 16 28 203 242 Missed 184 | . . 7 8 58 111 Damage Taken 4252 | . 2 549 312 2035 1354 Core 1256 | . . 159 84 296 717 Absorbed by Shields . | . . . . . . Core Remaining (%) 65 | 100 . 36 79 46 . Volleys Fired 58 | 3 5 . 29 20 1 Largest 2 | 2 2 . 2 2 1 Hottest 70 | 40 40 . 70 50 39 Shots Fired 103 | 6 10 . 49 37 1 Gun 52 | 6 10 . 1 35 . Cannon . | . . . . . . Launcher 23 | . . . 20 2 1 Special 28 | . . . 28 . . Kinetic 51 | 6 10 . . 35 . Thermal 29 | . . . 29 . . Explosive 22 | . . . 20 2 . Electromagnetic 1 | . . . . . 1 Robot Hit Streak 8 | 3 4 . 8 6 . Robot Miss Streak 3 | 1 3 . 1 3 3 Penetration Max . | . . . . . . Secondary Targets . | . . . . . . Shots Hit Robots 41 | 4 5 . 11 21 . Core Hits 40 | 3 2 . 17 12 6 Critical Kills . | . . . . . . Critical Parts Destroyed . | . . . . . . Critical Strikes . | . . . . . . Melee Attacks . | . . . . . . Impact . | . . . . . . Slashing . | . . . . . . Piercing . | . . . . . . Sneak Attacks . | . . . . . . Combat Hostiles . | . . . . . . Follow-up Attacks . | . . . . . . Damage Inflicted 1076 | 61 58 9 456 454 38 Guns 419 | 61 54 . 10 294 . Cannons . | . . . . . . Explosions 511 | . . . 433 51 27 Melee . | . . . . . . Ramming 146 | . 4 9 13 109 11 Kinetic 409 | 61 54 . . 294 . Thermal 10 | . . . 10 . . Explosive 484 | . . . 433 51 . Electromagnetic 27 | . . . . . 27 Impact . | . . . . . . Slashing . | . . . . . . Piercing . | . . . . . . Highest Corruption 4 | . . . . 4 1 Average Corruption 3 | . . . . 4 1 Corruption Purged . | . . . . . . Corruption Blocked . | . . . . . . Effects 7 | . . . . 7 . Matter Fused 2 | . . . . 2 . Heat Flow Errors 1 | . . . . 1 . Energy Discharges 2 | . . . . 2 . Data Loss (major) 1 | . . . . 1 . Misfires 1 | . . . . 1 . Overload Shots . | . . . . . . Overflow Damage 42 | . . . 39 3 . Projectiles . | . . . . . . Explosions 39 | . . . 39 . . Melee 3 | . . . . 3 . Knockbacks 2 | . . . 1 1 . Impact 2 | . . . 1 1 . Kinetic . | . . . . . . Secondary . | . . . . . . Self-Inflicted Damage 99 | . 2 4 56 36 1 Shots 3 | . . . 2 1 . Rammed 16 | . 1 1 5 3 6 Targets Rammed 50 | . 1 1 5 34 9 Kicked 34 | . . . . 31 3 Crushed . | . . . . . . Highest Temperature 259 | . . . 18 259 . Average Temperature 44 | . . . 6 47 . Received Heat Transfer 1290 | . . . 90 846 354 Siege Activations . | . . . . . . Robots Corrupted . | . . . . . . Combat Hostiles . | . . . . . . Parts Fried . | . . . . . . Impact Corruptions 1 | . . . . 1 . Robots Melted . | . . . . . . Combat Hostiles . | . . . . . . Parts Melted . | . . . . . . Heat Transferred 25 | . . . 25 . . Parts Sabotaged . | . . . . . . Parts Stolen . | . . . . . . Parts Stripped . | . . . . . . Power Chain Reactions . | . . . . . . Alert | -11 -10 -10 -9 -8 -7 ------- Run | Yrd Mat Min Mat Mat Fac Peak Influence 191 | 10 131 51 191 160 120 Initial 80 | . 6 51 . 80 . Average 66 | 2 37 38 117 90 26 Maximum Alert Level . | . . . . . . Low Security (%) 100 | 100 100 100 100 100 100 Level 1 . | . . . . . . Level 2 . | . . . . . . Level 3 . | . . . . . . Level 4 . | . . . . . . Level 5 . | . . . . . . High Security . | . . . . . . Max Security . | . . . . . . Squads Dispatched 7 | . 1 . 3 2 1 Investigation 3 | . . . 2 1 . Extermination . | . . . . . . Reinforcement 4 | . 1 . 1 1 1 Assault . | . . . . . . Garrison . | . . . . . . Intercept . | . . . . . . Searches Triggered . | . . . . . . Construction Impeded . | . . . . . . Haulers Reinforced . | . . . . . . Active Scanning Responses . | . . . . . . Cargo Convoy Interrupts . | . . . . . . Stealth | -11 -10 -10 -9 -8 -7 --------- Run | Yrd Mat Min Mat Mat Fac Distress Signals 3 | . 1 . 1 . 1 Communications Jammed . | . . . . . . Distress Signals . | . . . . . . Times Spotted 41 | . 6 1 8 12 14 Peak Tracking Total 7 | . 7 1 3 3 7 Tactical Retreats 5 | . 2 1 . . 2 Traps | -11 -10 -10 -9 -8 -7 ------- Run | Yrd Mat Min Mat Mat Fac Traps Triggered 2 | . . . . . 2 Indirectly . | . . . . . . Trap Hack Attempts . | . . . . . . Triggered . | . . . . . . Disarmed . | . . . . . . Reprogrammed . | . . . . . . Reused . | . . . . . . Traps Extracted . | . . . . . . Installed . | . . . . . . Triggered . | . . . . . . Machines | -11 -10 -10 -9 -8 -7 ---------- Run | Yrd Mat Min Mat Mat Fac Machines Disabled 3 | . . . 3 . . Max in Single Turn 2 | . . . 2 . . Machines Repaired . | . . . . . . Machines Dismantled . | . . . . . . Machines Sabotaged . | . . . . . . Overloaded Fab Kills . | . . . . . . Hacking | -11 -10 -10 -9 -8 -7 --------- Run | Yrd Mat Min Mat Mat Fac Machines Accessed 5 | . . . 2 3 . Terminals 4 | . . . 2 2 . Fabricators . | . . . . . . Repair Stations . | . . . . . . Recycling Units 1 | . . . . 1 . Scanalyzers . | . . . . . . Garrison Access . | . . . . . . Total Hacks 13 | . . . 4 9 . Successful 6 | . . . . 6 . Failed 7 | . . . 4 3 . Catastrophic 4 | . . . 3 1 . Database Lockouts . | . . . . . . Manual 5 | . . . 3 1 1 Terminals 9 | . . . 4 5 . Fabricators . | . . . . . . Repair Stations . | . . . . . . Recycling Units 4 | . . . . 4 . Scanalyzers . | . . . . . . Garrison Access . | . . . . . . Terminal Hacks 3 | . . . . 3 . Record 2 | . . . . 2 . Zone Layout 1 | . . . . 1 . Fabricator Hacks . | . . . . . . Repair Station Hacks . | . . . . . . Recycling Unit Hacks 3 | . . . . 3 . Recycle Component 1 | . . . . 1 . Process 1 | . . . . 1 . Report Inventory 1 | . . . . 1 . Scanalyzer . | . . . . . . Garrison Access Hacks . | . . . . . . Unauthorized Hacks . | . . . . . . Terminals . | . . . . . . Fabricators . | . . . . . . Repair Stations . | . . . . . . Recycling Units . | . . . . . . Scanalyzers . | . . . . . . Garrison Access . | . . . . . . Data Cores Recovered . | . . . . . . Used . | . . . . . . Hacking Detections 4 | . . . 2 2 . Full Trace Events 4 | . . . 2 2 . Feedback Events . | . . . . . . Feedback Blocked . | . . . . . . Robot Schematics Acquired . | . . . . . . Robots Built . | . . . . . . Authchips . | . . . . . . Time . | . . . . . . Total Robot Build Rating . | . . . . . . Part Schematics Acquired . | . . . . . . Parts Built . | . . . . . . Authchips . | . . . . . . Time . | . . . . . . Total Part Build Rating . | . . . . . . Parts Repaired . | . . . . . . Time . | . . . . . . Parts Recycled 1 | . . . . 1 . Recycled Matter 41 | . . . . 41 . Retrieved Matter . | . . . . . . Retrieved Components . | . . . . . . Parts Scanalyzed . | . . . . . . Part Schematics Acquired . | . . . . . . Parts Damaged . | . . . . . . Bothacking | -11 -10 -10 -9 -8 -7 ------------ Run | Yrd Mat Min Mat Mat Fac Used RIF Installer . | . . . . . . Robots Hacked . | . . . . . . Non-combat . | . . . . . . Combat . | . . . . . . Robot Hacks Applied . | . . . . . . Relay Couplers Released . | . . . . . . Fabnet Peak Effective % . | . . . . . . Robots Rewired . | . . . . . . Allies Hacked . | . . . . . . Hacks Repelled . | . . . . . . Allies | -11 -10 -10 -9 -8 -7 -------- Run | Yrd Mat Min Mat Mat Fac Total Allies . | . . . . . . Largest Group . | . . . . . . Highest-Rated Group . | . . . . . . Highest-Rated Ally . | . . . . . . Total Orders . | . . . . . . Ally Attacks . | . . . . . . Total Damage . | . . . . . . Kills . | . . . . . . Allies Corrupted . | . . . . . . Allies Melted . | . . . . . . Intel | -11 -10 -10 -9 -8 -7 ------- Run | Yrd Mat Min Mat Mat Fac Robot Analysis Total . | . . . . . . Derelict Logs Recovered 2 | . . 2 . . . Drone Launches . | . . . . . . Drone Recoveries . | . . . . . . Exploration | -11 -10 -10 -9 -8 -7 ------------- Run | Yrd Mat Min Mat Mat Fac Turns Passed 1805 | 77 102 299 377 563 387 Spaces Moved 1437 | 65 104 343 230 312 383 Core 248 | 13 . 2 . . 233 Treads . | . . . . . . Legs 307 | . . . . 157 150 Wheels 882 | 52 104 341 230 155 . Hover . | . . . . . . Flight . | . . . . . . Fastest Speed 50 | 50 80 80 93 100 50 Average Speed 99 | 74 80 84 98 139 90 Slowest Speed 270 | 80 80 250 100 270 200 Overloaded Moves . | . . . . . . Propulsion Burnouts . | . . . . . . Robots Hopped . | . . . . . . Cave-ins Triggered . | . . . . . . Exploration Rate (%) 28 | 3 31 75 27 22 13 Regions Visited 5 Branch Regions 1 Pre-discovered Areas 1 | . . 1 . . . Known Exits Taken 1 | . . 1 . . . Unknown Exits Taken 4 | 1 1 . 1 1 . Scrap Searched 1 | . . 1 . . . Spaces Dug . | . . . . . . Terrain Destroyed 95 | . . . 77 18 . Melee . | . . . . . . Projectile . | . . . . . . AOE 95 | . . . 77 18 . Terrain Rammed . | . . . . . . Walls Destroyed . | . . . . . . Machines Disabled . | . . . . . . Actions | -11 -10 -10 -9 -8 -7 --------- Run | Yrd Mat Min Mat Mat Fac Total 1669 | 87 113 351 301 397 420 Wait 3 | . . . . 3 . Move 1432 | 64 103 342 229 311 383 Hop . | . . . . . . Pick Up 54 | 11 3 3 14 11 12 Fast Attach . | . . . . . . Attach 41 | 7 . 5 9 12 8 Detach 4 | . . . 1 . 3 Swap 9 | 1 . . 8 . . Drop 18 | 1 1 . 6 6 4 Fire 58 | 3 5 . 29 20 1 Melee . | . . . . . . Ram 16 | . 1 1 5 3 6 Kick 34 | . . . . 31 3 Crush . | . . . . . . Escape Stasis . | . . . . . . Rewire . | . . . . . . Trap . | . . . . . . Miscellaneous . | . . . . . . Route ------- -11/Scrapyard -10/Materials -10/Mines (discovered 2 exits: *Mat x2) -9/Materials (discovered 2 exits: *Mat / [*Min]) -8/Materials -7/Factory History --------- Turn | Location | Event 8 | -11/Scrapyard | Discovered new exit (range 16) 78 | -11/Scrapyard | Entered Materials 171 | -10/Materials | Discovered new exit (range 12) 180 | -10/Materials | Entered Mines 307 | -10/Mines | Build established: Mutant 338 | -10/Mines | YI-UF0 nonchalantly dropped a Grenade Launcher on the ground 390 | -10/Mines | Identified exit to Materials 412 | -10/Mines | Core integrity fell below 50% 442 | -10/Mines | Lost 5 parts (1p2n2w) 472 | -10/Mines | Discovered exit to Materials (range 6) 479 | -10/Mines | Entered Materials 479 | -9/Materials | Evolved 2 slots: Propulsion x1, Utility x1 663 | -9/Materials | Discovered new exit (range 10) 792 | -9/Materials | Discovered new exit (range 16) 822 | -9/Materials | Lost 4 parts (1p1n1u1w) 856 | -9/Materials | Entered another Materials area 856 | -8/Materials | Evolved 2 slots: Power x1, Utility x1 1186 | -8/Materials | Lost 4 parts (2p2u) 1351 | -8/Materials | Discovered new exit (range 17) 1359 | -8/Materials | Lost 4 parts (2u2w) 1409 | -8/Materials | Core integrity fell below 50% 1419 | -8/Materials | Entered Factory 1419 | -7/Factory | Evolved 2 slots: Power x1, Propulsion x1 1445 | -7/Factory | Lost 5 parts (1p1n1u2w) 1661 | -7/Factory | Lost 5 parts (3n2u) 1665 | -7/Factory | Core integrity fell below 50% 1784 | -7/Factory | Core integrity fell below 20% 1806 | -7/Factory | Destroyed by S-27 Virus with Autogun Last Messages --------------- K-01 Serf cleans the Terminal. U-05 Engineer lays Concrete. K-01 Serf cleans the Terminal. U-05 Engineer lays Concrete. K-01 Serf cleans the Terminal. Penetrated by Slug. K-01 Serf cleans the Power Conduit. Acquired Lgt. Deuterium Engine. K-01 Serf cleans the Terminal. Penetrated by Slug. Acquired Lgt. Deuterium Engine. K-01 Serf cleans the Terminal. Penetrated by Slug. Acquired Lgt. Deuterium Engine. Penetrated by Slug. Dropped Lgt. Deuterium Engine. K-01 Serf cleans the Terminal. Slug penetrates K-01 Serf. K-01 Serf cleans the Terminal. W-25 Informer sends out distress signal. Map ----- +----------------------------------------------------+ | ?????????????????????????????????????????????????? | | ?????????????????????????????????????????????????? | | ?????????????????????????????????????????????????? | | ?????????????????????????????????????????????????? | | ?????????????????????????????????????????????????? | | ?????????????????????????????????????????????????? | | ?????????????????????????????????????????????????? | | ?????????????????????????????????????????????????? | | ?????????????????????????????????????????????????? | | ?????????????????????????????????????????????????? | | ?????????????????????????????????????????????????? | | ?????????????????????????????????????????????????? | | ?????????????????????????????????????????????????? | | ?????????????????????????????????????????????????? | | ?????????????????????????????????????????????????? | | ?????????????????????????????????????????????????? | | ????????????????????????????????????? ???????????? | | ????????????????????????????????????? #?????????? | | ????????????????????????????????????? #?????????? | | ???????????????????????????????????? #?????????? | | ???????????????????????????????????? #?????????? | | ?????????????????????##########????? #?????????? | | ?????????????????????# """ #???? #?????????? | | ?????????????????????# "R" #???? ##????????? | | ?????????????????????# " " #???? ^#????????? | | ?????????????????????# @ #####^ #????????? | | ?????????????????????# s +????????? | | ?????????????????????# """ # #????????? | | ?????????????????????# """ # """ #????????? | | ?????????????????????# """ # """ #????????? | | ?????????????????????# # """ #????????? | | ?????????????????????####+#####! #????????? | | ??????????????????????????????# #????????? | | ??????????????????????????????# #????????? | | ??????????????????????????????# #????????? | | ??????????????????????? ???# ?? | | ??????????????????????? ???# #### ##### ###??? | | ??????????????????????? ??# ####+###????????? | | ??????????????????????? ??# + #????????? | | ???????????????????????# #??# ## """ #????????? | | ???????????????????????# #### ## """ #????????? | | ???????????????????????# ## """ #????????? | | ???????????????????????# ## #????????? | | ???????????????????????# "" ## """ #????????? | | ???????????????????????# """ ## """ #????????? | | ???????????????????????# "T ## """ #????????? | | ???????????????????????# """ ## #????????? | | ???????????????????????# "" # """ #????????? | | ???????????????????????# + """ #????????? | | ???????????????????????#!*! # """ #????????? | +----------------------------------------------------+ Best States ------------- Heat Dissipation 34 Energy Generation 19 Energy Capacity 465 Matter Stores 300 Matter Capacity 300 Sight Range 16 Terrain Scan Density 10 ECM Strength 2 Armor Coverage 675 Evasion (%) 55 Item Schematics ----------------- None Robot Schematics ------------------ None Fabricated ------------ Nothing Alien Tech Used ----------------- None Achievements -------------- None Challenges ------------ None Game ------ Seed BombTripodMediator Manual? 0 Play Time 00:34:38 Cumulative 5.9 hours Start 2024.03.08 @ 22:17:27 End 2024.03.09 @ 23:48:36 Sessions 3 Manual Loads 0 Difficulty Rogue Special Mode None Game No. 14 Rogue 14 Adventurer 0 Explorer 0 Win Type - Total 0 Types 0/0/0/0/0/0/0/0/0 Lore% 2 Gallery% 11 Achievement% 8 Wizard Run 0 Options --------- Layout 1 ASCII 0 Keyboard 0 Movement Arrows Keybinds 0 Fullscreen 1 Font 16/Terminus Map View 50x40 Zoom Use 89% Tactical HUD 0 Map Filters NONE Filters NONE Steam 1 RUN: 59ad62be-d649-442d-a5c0-dccaf6631b1d